[Event "CZE-ch Open 2018"]
[Site "Ostrava"]
[Date "2018.04.28"]
[Round "1"]
[White "Svoboda, Svatopluk"]
[Black "Gnida, Patrik"]
[Result "1/2-1/2"]
[ECO "C50"]
[WhiteElo "2401"]
[BlackElo "2165"]
[Annotator "RC"]
[PlyCount "70"]
[EventDate "2018.??.??"]
[EventCountry "CZE"]
[SourceTitle "playchess.com"]
[Source "ChessBase"]
[SourceQuality "1"]
[TimeControl "40/5400+30:900+30"]

1. e4 {[%emt 0:00:00]} e5 {[%emt 0:00:33]} 2. Nf3 {[%emt 0:00:00]} Nc6 {[%emt 0:00:21]} 3. Bc4 {[%emt 0:00:09]} Be7 {[%emt 0:02:15]} 4. d4 {[%emt 0:00:15]} d6 {[%emt 0:01:56]} 5. c3 {[%emt 0:02:46]} Nf6 {[%emt 0:03:33]} 6. Nbd2 {[%emt 0:02:41]} O-O {[%emt 0:00:21]} 7. Bd3 {[%emt 0:02:32]} Bg4 {[%emt 0:08:11]} 8. h3 {[%emt 0:01:02]} Bh5 {[%emt 0:01:09]} 9. d5 {[%emt 0:03:34]} Nb8 {[%emt 0:00:03]} 10. Nf1 {[%emt 0:05:00]} c6 {[%emt 0:02:02]} 11. c4 {[%emt 0:00:57]} Nbd7 {[%emt 0:00:32]} 12. Be3 {[%emt 0:03:09]} Bg6 {[%emt 0:00:56]} 13. Ng3 {[%emt 0:00:28]} Rc8 {[%emt 0:00:42]} 14. b4 {[%emt 0:00:55]} a5 {[%emt 0:01:55]} 15. a3 {[%emt 0:00:12]} cxd5 {[%emt 0:01:59]} 16. cxd5 {[%emt 0:00:27]} Rc3 {[%emt 0:02:31]} 17. Nh4 {[%emt 0:06:49]} Nxe4 {[%emt 0:25:07]} 18. Nxg6 {[%emt 0:03:25]} Nxg3 {[%emt 0:00:46]} 19. Nxf8 {[%emt 0:03:22]} Kxf8 {[%emt 0:17:58]} 20. Qd2 {[%emt 0:08:20]} Rxd3 {[%emt 0:05:19]} 21. Qxd3 {[%emt 0:00:11]} Nxh1 {[%emt 0:00:03]} 22. Rc1 {[%emt 0:04:13]} Bg5 {[%emt 0:11:50]} 23. Ke2 {[%emt 0:06:49]} Nxf2 {[%emt 0:00:31]} 24. Kxf2 {[%emt 0:00:43]} Bxe3+ {[%emt 0:00:30]} 25. Qxe3 {[%emt 0:00:18]} axb4 {[%emt 0:00:06]} 26. axb4 {[%emt 0:00:24]} Qh4+ {[%emt 0:04:11]} 27. Kg1 {[%emt 0:00:35]} Qxb4 {[%emt 0:05:27]} 28. Rc8+ {[%emt 0:01:59]} Ke7 {[%emt 0:00:02]} 29. Qg5+ {[%emt 0:00:20]} Nf6 {[%emt 0:00:02]} 30. Qxg7 {[%emt 0:01:38]} Qd4+ {[%emt 0:00:12]} 31. Kh2 {[%emt 0:00:09]} Qf4+ {[%emt 0:01:10]} 32. Kg1 {[%emt 0:00:16]} Nxd5 {[%emt 0:02:58]} 33. Qf8+ {[%emt 0:00:16]} Ke6 {[%emt 0:00:16]} 34. Re8+ {[%emt 0:00:20]} Kf5 {[%emt 0:00:25]} 35. Qxf7+ {[%emt 0:01:32]} Nf6 {[%emt 0:00:03]} 1/2-1/2

[Event "CZE-ch Open 2018"]
[Site "Ostrava"]
[Date "2018.04.29"]
[Round "2"]
[White "Bures, Jaroslav"]
[Black "Vystrcil, Martin"]
[Result "1-0"]
[ECO "B03"]
[WhiteElo "2407"]
[BlackElo "2146"]
[Annotator "ChessBase"]
[PlyCount "73"]
[EventDate "2018.??.??"]
[EventCountry "CZE"]
[SourceTitle "playchess.com"]
[Source "ChessBase"]
[SourceQuality "1"]
[TimeControl "40/5400+30:900+30"]

1. e4 {[%emt 0:01:09]} Nf6 {[%emt 0:02:29]} 2. e5 {[%emt 0:01:23]} Nd5 {[%emt 0:00:09]} 3. d4 {[%emt 0:01:42]} d6 {[%emt 0:00:10]} 4. c4 {[%emt 0:01:19]} Nb6 {[%emt 0:00:06]} 5. exd6 {[%emt 0:00:57]} cxd6 {[%emt 0:00:06]} 6. Nc3 {[%emt 0:00:48]} g6 {[%emt 0:00:14]} 7. Be3 {[%emt 0:01:46]} Bg7 {[%emt 0:00:12]} 8. Rc1 {[%emt 0:00:55]} O-O {[%emt 0:00:27]} 9. b3 {[%emt 0:01:08]} e5 {[%emt 0:01:03]} 10. dxe5 {[%emt 0:01:39]} dxe5 {[%emt 0:00:03]} 11. Qxd8 {[%emt 0:00:45]} Rxd8 {[%emt 0:00:03]} 12. c5 {[%emt 0:00:05]} N6d7 {[%emt 0:00:12]} 13. Nf3 {[%emt 0:00:05]} Nc6 {[%emt 0:06:46]} 14. Bc4 {[%emt 0:00:04]} h6 {[%emt 0:00:25]} 15. Rd1 {[%emt 0:00:05]} Nf8 {[%emt 0:08:36]} 16. Rxd8 {[%emt 0:02:09]} Nxd8 {[%emt 0:01:39]} 17. Nd5 {[%emt 0:21:28]} Nfe6 {[%emt 0:34:59]} 18. b4 {[%emt 0:07:58]} Kh7 {[%emt 0:03:22]} 19. Nd2 {[%emt 0:07:16]} f5 {[%emt 0:04:51]} 20. Nb3 {[%emt 0:01:26]} e4 {[%emt 0:14:07]} 21. b5 {[%emt 0:23:29]} Nf7 {[%emt 0:04:00]} 22. f4 {[%emt 0:07:25]} exf3 {[%emt 0:01:42]} 23. gxf3 {[%emt 0:00:04]} Ne5 {[%emt 0:02:11]} 24. Be2 {[%emt 0:00:02]} Bd7 {[%emt 0:05:33]} 25. Kf2 {[%emt 0:03:32]} Rf8 {[%emt 0:02:08]} 26. Rd1 {[%emt 0:01:20]} f4 {[%emt 0:00:52]} 27. Bc1 {[%emt 0:00:07]} Ng5 {[%emt 0:04:11]} 28. Nxf4 {[%emt 0:03:22]} h5 {[%emt 0:02:45]} 29. h4 {[%emt 0:05:10]} Ne6 {[%emt 0:00:54]} 30. Rxd7 {[%emt 0:03:48]} Nxf4 {[%emt 0:00:04]} 31. Rxb7 {[%emt 0:00:28]} Nfd3+ {[%emt 0:00:59]} 32. Bxd3 {[%emt 0:01:37]} Rxf3+ {[%emt 0:00:35]} 33. Ke2 {[%emt 0:00:01]} Rxd3 {[%emt 0:00:11]} 34. Rxg7+ {[%emt 0:00:15]} Kxg7 {[%emt 0:00:12]} 35. Bb2 {[%emt 0:00:02]} Rd5 {[%emt 0:00:45]} 36. c6 {[%emt 0:00:59]} Rxb5 {[%emt 0:00:57]} 37. c7 {[%emt 0:00:11]} 1-0

[Event "CZE-ch Open 2018"]
[Site "Ostrava"]
[Date "2018.04.29"]
[Round "2"]
[White "Vokac, Marek"]
[Black "Malinovsky, Petr"]
[Result "1-0"]
[ECO "A13"]
[WhiteElo "2390"]
[BlackElo "2006"]
[Annotator "ChessBase"]
[PlyCount "74"]
[EventDate "2018.??.??"]
[EventCountry "CZE"]
[SourceTitle "playchess.com"]
[Source "ChessBase"]
[SourceQuality "1"]
[TimeControl "40/5400+30:900+30"]

1. c4 {[%emt 0:01:51]} e6 {[%emt 0:00:15]} 2. Nf3 {[%emt 0:00:09]} d5 {[%emt 0:00:05]} 3. g3 {[%emt 0:00:20]} c6 {[%emt 0:00:30]} 4. b3 {[%emt 0:00:13]} f5 {[%emt 0:01:19]} 5. Bg2 {[%emt 0:00:22]} Nf6 {[%emt 0:00:12]} 6. O-O {[%emt 0:01:06]} Bd6 {[%emt 0:03:31]} 7. Ba3 {[%emt 0:01:26]} c5 {[%emt 0:04:08]} 8. cxd5 {[%emt 0:01:13]} exd5 {[%emt 0:00:54]} 9. d4 {[%emt 0:00:15]} b6 {[%emt 0:01:20]} 10. dxc5 {[%emt 0:05:35]} bxc5 {[%emt 0:00:28]} 11. Nc3 {[%emt 0:00:05]} Bb7 {[%emt 0:02:18]} 12. Ng5 {[%emt 0:02:25]} Ne4 {[%emt 0:09:49]} 13. Ngxe4 {[%emt 0:06:09]} dxe4 {[%emt 0:00:56]} 14. Nb5 {[%emt 0:08:33]} Be7 {[%emt 0:10:27]} 15. Qxd8+ {[%emt 0:01:03]} Kxd8 {[%emt 0:00:17]} 16. Rfd1+ {[%emt 0:00:19]} Nd7 {[%emt 0:00:46]} 17. Rac1 {[%emt 0:04:44]} Bc6 {[%emt 0:03:14]} 18. Nd6 {[%emt 0:04:37]} Rf8 {[%emt 0:10:26]} 19. Bxc5 {[%emt 0:05:36]} Rf6 {[%emt 0:01:24]} 20. Ba3 {[%emt 0:03:11]} Bxd6 {[%emt 0:02:26]} 21. Bxd6 {[%emt 0:00:08]} Rc8 {[%emt 0:02:17]} 22. Bf4 {[%emt 0:06:17]} h6 {[%emt 0:04:17]} 23. Be3 {[%emt 0:02:51]} Bb5 {[%emt 0:01:49]} 24. Bf1 {[%emt 0:02:01]} Rxc1 {[%emt 0:03:19]} 25. Rxc1 {[%emt 0:00:56]} a6 {[%emt 0:04:19]} 26. a4 {[%emt 0:04:53]} Bc6 {[%emt 0:00:25]} 27. Bd4 {[%emt 0:00:03]} Rg6 {[%emt 0:00:34]} 28. e3 {[%emt 0:01:00]} Bb7 {[%emt 0:00:47]} 29. h4 {[%emt 0:03:25]} Re6 {[%emt 0:01:38]} 30. Bxg7 {[%emt 0:01:55]} Ne5 {[%emt 0:00:20]} 31. Bxe5 {[%emt 0:02:22]} Rxe5 {[%emt 0:00:04]} 32. b4 {[%emt 0:00:14]} Rd5 {[%emt 0:02:46]} 33. Be2 {[%emt 0:00:29]} Kd7 {[%emt 0:01:27]} 34. Kf1 {[%emt 0:01:30]} Bc6 {[%emt 0:01:36]} 35. Rd1 {[%emt 0:01:06]} Kd6 {[%emt 0:01:45]} 36. Rxd5+ {[%emt 0:00:21]} Kxd5 {[%emt 0:00:07]} 37. a5 {[%emt 0:00:33]} Ba4 {[%emt 0:01:19]} 1-0

[Event "CZE-ch Open 2018"]
[Site "Ostrava"]
[Date "2018.04.29"]
[Round "2"]
[White "Jasny, Stanislav"]
[Black "Skalsky, Alexandr"]
[Result "1-0"]
[ECO "D70"]
[WhiteElo "2379"]
[BlackElo "2207"]
[Annotator "ChessBase"]
[PlyCount "69"]
[EventDate "2018.??.??"]
[EventCountry "CZE"]
[SourceTitle "playchess.com"]
[Source "ChessBase"]
[SourceQuality "1"]
[TimeControl "40/5400+30:900+30"]

1. d4 {[%emt 0:00:00]} Nf6 {[%emt 0:00:07]} 2. c4 {[%emt 0:00:00]} g6 {[%emt 0:00:02]} 3. f3 {[%emt 0:00:23]} d5 {[%emt 0:00:28]} 4. cxd5 {[%emt 0:00:09]} Nxd5 {[%emt 0:00:03]} 5. e4 {[%emt 0:00:10]} Nb6 {[%emt 0:00:11]} 6. Nc3 {[%emt 0:00:33]} Bg7 {[%emt 0:01:04]} 7. Be3 {[%emt 0:00:18]} O-O {[%emt 0:02:15]} 8. Qd2 {[%emt 0:00:13]} e5 {[%emt 0:01:00]} 9. d5 {[%emt 0:00:11]} c6 {[%emt 0:00:15]} 10. Rd1 {[%emt 0:01:26]} cxd5 {[%emt 0:15:28]} 11. exd5 {[%emt 0:00:07]} N8d7 {[%emt 0:01:28]} 12. Nh3 {[%emt 0:00:36]} e4 {[%emt 0:14:40]} 13. fxe4 {[%emt 0:05:44]} Ne5 {[%emt 0:00:30]} 14. Nf2 {[%emt 0:07:59]} Re8 {[%emt 0:20:20]} 15. Be2 {[%emt 0:14:28]} f5 {[%emt 0:13:42]} 16. O-O {[%emt 0:06:01]} fxe4 {[%emt 0:11:23]} 17. Bg5 {[%emt 0:04:27]} Nbc4 {[%emt 0:05:20]} 18. Qc1 {[%emt 0:10:08]} Qb6 {[%emt 0:02:37]} 19. Ncxe4 {[%emt 0:20:40]} Bf5 {[%emt 0:00:33]} 20. b3 {[%emt 0:08:32]} Nb2 {[%emt 0:04:12]} 21. Be3 {[%emt 0:01:17]} Qd8 {[%emt 0:02:01]} 22. Rd2 {[%emt 0:02:05]} Bxe4 {[%emt 0:01:24]} 23. Nxe4 {[%emt 0:00:30]} Qh4 {[%emt 0:00:21]} 24. Rf4 Qd8 {[%emt 0:01:15]} 25. Rxb2 {[%emt 0:02:48]} g5 {[%emt 0:01:09]} 26. Rf1 {[%emt 0:01:24]} Ng6 27. Bd3 {[%emt 0:05:18]} Ne5 {[%emt 0:01:39]} 28. Bb5 {[%emt 0:00:38]} Qxd5 {[%emt 0:00:26]} 29. Bxe8 {[%emt 0:01:09]} Qxe4 {[%emt 0:00:10]} 30. Bb5 {[%emt 0:01:38]} Ng4 {[%emt 0:00:53]} 31. Qc4+ {[%emt 0:00:40]} Qxc4 {[%emt 0:00:10]} 32. Bxc4+ {[%emt 0:00:05]} Kh8 {[%emt 0:00:04]} 33. Bc1 {[%emt 0:00:36]} Bd4+ {[%emt 0:01:08]} 34. Kh1 {[%emt 0:00:22]} Re8 {[%emt 0:00:30]} 35. Rd2 {[%emt 0:01:09]} 1-0

[Event "CZE-ch Open 2018"]
[Site "Ostrava"]
[Date "2018.04.29"]
[Round "2"]
[White "Obsivac, Josef"]
[Black "Bartos, Jan"]
[Result "1/2-1/2"]
[ECO "D37"]
[WhiteElo "2330"]
[BlackElo "2198"]
[Annotator "ChessBase"]
[PlyCount "30"]
[EventDate "2018.??.??"]
[EventCountry "CZE"]
[SourceTitle "playchess.com"]
[Source "ChessBase"]
[SourceQuality "1"]
[TimeControl "40/5400+30:900+30"]

1. d4 {[%emt 0:02:51]} Nf6 {[%emt 0:00:07]} 2. c4 {[%emt 0:00:09]} e6 {[%emt 0:00:04]} 3. Nf3 {[%emt 0:00:09]} d5 {[%emt 0:00:07]} 4. Nc3 {[%emt 0:02:38]} dxc4 {[%emt 0:00:41]} 5. e3 {[%emt 0:00:42]} a6 {[%emt 0:00:08]} 6. a4 {[%emt 0:01:47]} c5 {[%emt 0:00:25]} 7. Bxc4 {[%emt 0:00:42]} Nc6 {[%emt 0:00:10]} 8. O-O {[%emt 0:01:44]} Be7 {[%emt 0:00:45]} 9. dxc5 {[%emt 0:09:43]} Qxd1 {[%emt 0:00:54]} 10. Rxd1 {[%emt 0:00:02]} Bxc5 {[%emt 0:00:08]} 11. h3 {[%emt 0:00:55]} b6 {[%emt 0:01:48]} 12. Bd2 {[%emt 0:09:33]} Bb7 {[%emt 0:03:05]} 13. Rac1 {[%emt 0:04:10]} O-O {[%emt 0:04:15]} 14. Kf1 {[%emt 0:13:38]} Rfd8 {[%emt 0:04:35]} 15. Be1 {[%emt 0:00:53]} Kf8 {[%emt 0:00:40]} 1/2-1/2

[Event "CZE-ch Open 2018"]
[Site "Ostrava"]
[Date "2018.04.29"]
[Round "2"]
[White "Cerveny, Petr"]
[Black "Zwardon, Vojtech"]
[Result "0-1"]
[ECO "B32"]
[WhiteElo "2315"]
[BlackElo "2409"]
[Annotator "ChessBase"]
[PlyCount "126"]
[EventDate "2018.??.??"]
[EventCountry "CZE"]
[SourceTitle "playchess.com"]
[Source "ChessBase"]
[SourceQuality "1"]
[TimeControl "40/5400+30:900+30"]

1. e4 {[%emt 0:00:00]} c5 {[%emt 0:00:04]} 2. Nf3 {[%emt 0:00:00]} Nc6 {[%emt 0:00:21]} 3. d4 {[%emt 0:00:00]} cxd4 {[%emt 0:00:02]} 4. Nxd4 {[%emt 0:00:00]} e5 {[%emt 0:00:41]} 5. Nb5 {[%emt 0:00:04]} a6 {[%emt 0:00:11]} 6. Nd6+ {[%emt 0:00:16]} Bxd6 {[%emt 0:00:06]} 7. Qxd6 {[%emt 0:00:13]} Qe7 {[%emt 0:00:08]} 8. Qxe7+ {[%emt 0:00:27]} Ngxe7 {[%emt 0:00:06]} 9. c4 {[%emt 0:00:29]} d6 {[%emt 0:05:26]} 10. Nc3 {[%emt 0:00:38]} f5 {[%emt 0:12:33]} 11. b3 {[%emt 0:11:22]} Nb4 {[%emt 0:01:09]} 12. Kd1 {[%emt 0:04:51]} O-O {[%emt 0:01:32]} 13. Nd5 {[%emt 0:08:05]} Nbc6 {[%emt 0:04:49]} 14. Nb6 {[%emt 0:17:40]} Rb8 {[%emt 0:01:04]} 15. Nxc8 {[%emt 0:01:01]} Rbxc8 {[%emt 0:00:27]} 16. exf5 {[%emt 0:00:09]} d5 {[%emt 0:05:22]} 17. cxd5 {[%emt 0:05:24]} Rfd8 {[%emt 0:00:25]} 18. Bd2 {[%emt 0:10:33]} Nxd5 {[%emt 0:00:55]} 19. Rc1 {[%emt 0:02:56]} b5 {[%emt 0:01:24]} 20. Ke1 {[%emt 0:13:29]} Ncb4 {[%emt 0:10:27]} 21. Rxc8 {[%emt 0:04:30]} Rxc8 {[%emt 0:00:07]} 22. a4 {[%emt 0:11:47]} Nc2+ {[%emt 0:00:52]} 23. Kd1 {[%emt 0:00:16]} Nd4 {[%emt 0:00:10]} 24. g3 {[%emt 0:03:01]} Nc3+ {[%emt 0:05:53]} 25. Bxc3 {[%emt 0:00:26]} Rxc3 {[%emt 0:00:02]} 26. axb5 {[%emt 0:00:30]} axb5 {[%emt 0:00:07]} 27. Bg2 {[%emt 0:00:15]} Kf7 {[%emt 0:01:18]} 28. b4 {[%emt 0:02:23]} Rc2 {[%emt 0:01:43]} 29. Rf1 {[%emt 0:00:02]} Kf6 {[%emt 0:01:31]} 30. g4 {[%emt 0:00:12]} Kg5 {[%emt 0:01:40]} 31. h3 {[%emt 0:00:25]} Ra2 {[%emt 0:02:05]} 32. Re1 {[%emt 0:01:59]} Rxf2 {[%emt 0:00:25]} 33. Bd5 {[%emt 0:00:30]} Kf6 {[%emt 0:00:15]} 34. Re3 {[%emt 0:00:59]} Rf4 {[%emt 0:02:34]} 35. Ra3 {[%emt 0:01:09]} Nxf5 {[%emt 0:00:17]} 36. Ra6+ {[%emt 0:00:52]} Kg5 {[%emt 0:03:39]} 37. gxf5 {[%emt 0:00:14]} Rd4+ {[%emt 0:00:07]} 38. Ke2 {[%emt 0:00:05]} Rxd5 {[%emt 0:00:04]} 39. Ra7 {[%emt 0:00:05]} Kf6 {[%emt 0:00:54]} 40. Rb7 {[%emt 0:00:33]} h5 {[%emt 0:21:04]} 41. Ke3 {[%emt 0:00:00]} h4 {[%emt 0:00:00]} 42. Kf3 {[%emt 0:00:00]} Rd3+ {[%emt 0:00:00]} 43. Kg2 {[%emt 0:00:00]} Rg3+ {[%emt 0:00:00]} 44. Kh2 {[%emt 0:00:00]} e4 {[%emt 0:00:00]} 45. Rxb5 {[%emt 0:00:00]} Rb3 {[%emt 0:00:00]} 46. Kg2 {[%emt 0:00:00]} Rb2+ {[%emt 0:00:00]} 47. Kg1 {[%emt 0:00:00]} e3 {[%emt 0:00:00]} 48. Kf1 {[%emt 0:00:25]} Kg5 {[%emt 0:00:00]} 49. f6+ {[%emt 0:02:59]} Kxf6 {[%emt 0:00:00]} 50. Rb8 {[%emt 0:00:16]} Kf5 {[%emt 0:00:00]} 51. b5 {[%emt 0:03:26]} Kf4 {[%emt 0:00:00]} 52. b6 {[%emt 0:04:11]} Kg3 {[%emt 0:00:00]} 53. Rg8 {[%emt 0:05:00]} Rf2+ {[%emt 0:00:00]} 54. Kg1 {[%emt 0:00:59]} Rf7 {[%emt 0:00:00]} 55. Re8 {[%emt 0:02:21]} Kf3 {[%emt 0:00:00]} 56. Kf1 {[%emt 0:00:17]} g5 {[%emt 0:00:00]} 57. Re5 {[%emt 0:00:47]} g4 {[%emt 0:00:00]} 58. hxg4 {[%emt 0:03:36]} h3 {[%emt 0:00:00]} 59. Kg1 {[%emt 0:00:57]} e2 {[%emt 0:00:00]} 60. g5 {[%emt 0:01:18]} Rb7 {[%emt 0:00:00]} 61. Kh2 {[%emt 0:00:36]} Rxb6 {[%emt 0:00:00]} 62. Kxh3 {[%emt 0:00:24]} Rb8 {[%emt 0:00:00]} 63. Kh2 {[%emt 0:00:23]} Rb1 {[%emt 0:01:57]} 0-1

[Event "CZE-ch Open 2018"]
[Site "Ostrava"]
[Date "2018.04.29"]
[Round "2"]
[White "Freisler, Pavel"]
[Black "Jelinek, Michal"]
[Result "1-0"]
[ECO "A06"]
[WhiteElo "2266"]
[BlackElo "2134"]
[Annotator "ChessBase"]
[PlyCount "80"]
[EventDate "2018.??.??"]
[EventCountry "CZE"]
[SourceTitle "playchess.com"]
[Source "ChessBase"]
[SourceQuality "1"]
[TimeControl "40/5400+30:900+30"]

1. Nf3 {[%emt 0:00:00]} d5 {[%emt 0:03:20]} 2. b3 {[%emt 0:05:32]} Nf6 {[%emt 0:02:07]} 3. Bb2 {[%emt 0:00:04]} c5 {[%emt 0:01:01]} 4. e3 {[%emt 0:01:10]} Nc6 {[%emt 0:01:00]} 5. Bb5 {[%emt 0:00:53]} Bg4 {[%emt 0:06:49]} 6. h3 {[%emt 0:00:27]} Bh5 {[%emt 0:01:50]} 7. g4 {[%emt 0:02:07]} Bg6 {[%emt 0:00:05]} 8. Ne5 {[%emt 0:00:05]} Rc8 {[%emt 0:02:28]} 9. h4 {[%emt 0:16:58]} d4 {[%emt 0:03:10]} 10. Bxc6+ {[%emt 0:11:25]} bxc6 {[%emt 0:00:10]} 11. Nxg6 {[%emt 0:02:09]} hxg6 {[%emt 0:01:13]} 12. d3 {[%emt 0:06:18]} e6 {[%emt 0:22:48]} 13. Nd2 {[%emt 0:08:44]} dxe3 {[%emt 0:12:45]} 14. fxe3 {[%emt 0:00:13]} Nd5 {[%emt 0:00:23]} 15. Qf3 {[%emt 0:00:50]} Rxh4 {[%emt 0:01:14]} 16. O-O-O {[%emt 0:00:04]} g5 {[%emt 0:04:52]} 17. e4 {[%emt 0:13:43]} Nf6 {[%emt 0:04:18]} 18. Rxh4 {[%emt 0:05:27]} gxh4 {[%emt 0:00:04]} 19. Rf1 {[%emt 0:01:55]} Rc7 {[%emt 0:04:25]} 20. Nc4 {[%emt 0:02:56]} Nh7 {[%emt 0:02:15]} 21. Kb1 {[%emt 0:03:15]} f6 {[%emt 0:05:44]} 22. e5 {[%emt 0:02:02]} Qd5 {[%emt 0:00:52]} 23. Qf2 {[%emt 0:00:41]} h3 {[%emt 0:02:19]} 24. Qh4 {[%emt 0:01:27]} Qg2 {[%emt 0:08:07]} 25. Ne3 {[%emt 0:00:27]} Qe2 {[%emt 0:00:07]} 26. Qxh7 {[%emt 0:00:30]} Qxe3 {[%emt 0:01:15]} 27. exf6 {[%emt 0:01:29]} Rf7 {[%emt 0:00:57]} 28. Qh5 {[%emt 0:03:10]} Qe2 {[%emt 0:05:26]} 29. Rh1 {[%emt 0:01:56]} gxf6 {[%emt 0:01:56]} 30. Qxh3 {[%emt 0:02:32]} Bd6 {[%emt 0:00:56]} 31. Bc3 {[%emt 0:03:47]} Be5 {[%emt 0:00:40]} 32. Qh8+ {[%emt 0:01:34]} Rf8 {[%emt 0:01:05]} 33. Qh5+ {[%emt 0:00:08]} Rf7 {[%emt 0:00:25]} 34. Bxe5 {[%emt 0:00:43]} fxe5 {[%emt 0:00:29]} 35. Qh8+ {[%emt 0:00:46]} Rf8 {[%emt 0:00:06]} 36. Qg7 {[%emt 0:00:43]} Qf3 {[%emt 0:01:17]} 37. Rh7 {[%emt 0:00:35]} Rf7 {[%emt 0:00:31]} 38. Qg8+ {[%emt 0:01:07]} Ke7 {[%emt 0:00:04]} 39. Rh8 {[%emt 0:00:30]} Kd6 {[%emt 0:00:55]} 40. Qb8+ {[%emt 0:00:27]} Kd5 1-0

[Event "CZE-ch Open 2018"]
[Site "Ostrava"]
[Date "2018.04.29"]
[Round "2"]
[White "Miesbauer, Jan"]
[Black "Kolar, Stanislav"]
[Result "1-0"]
[ECO "A40"]
[WhiteElo "2261"]
[BlackElo "2091"]
[Annotator "ChessBase"]
[PlyCount "81"]
[EventDate "2018.??.??"]
[EventCountry "CZE"]
[SourceTitle "playchess.com"]
[Source "ChessBase"]
[SourceQuality "1"]
[TimeControl "40/5400+30:900+30"]

1. d4 {[%emt 0:00:00]} Nf6 {[%emt 0:00:09]} 2. c4 {[%emt 0:00:00]} e6 {[%emt 0:00:03]} 3. g3 {[%emt 0:00:00]} Bb4+ {[%emt 0:01:26]} 4. Bd2 {[%emt 0:00:10]} Bxd2+ {[%emt 0:00:40]} 5. Qxd2 {[%emt 0:00:49]} O-O {[%emt 0:00:53]} 6. Bg2 {[%emt 0:00:36]} d5 {[%emt 0:00:22]} 7. Nf3 {[%emt 0:01:02]} Ne4 {[%emt 0:02:09]} 8. Qc2 {[%emt 0:00:10]} Nc6 {[%emt 0:00:17]} 9. O-O {[%emt 0:02:11]} f5 {[%emt 0:01:18]} 10. e3 {[%emt 0:01:08]} Bd7 {[%emt 0:01:46]} 11. Nc3 {[%emt 0:01:05]} Nxc3 {[%emt 0:02:48]} 12. Qxc3 {[%emt 0:01:00]} a5 {[%emt 0:01:43]} 13. cxd5 {[%emt 0:03:34]} exd5 {[%emt 0:00:08]} 14. Qb3 {[%emt 0:04:18]} Be8 {[%emt 0:02:39]} 15. Ne5 {[%emt 0:02:43]} Nxe5 {[%emt 0:00:52]} 16. dxe5 {[%emt 0:00:06]} c6 {[%emt 0:00:39]} 17. Qxb7 {[%emt 0:01:55]} Rb8 {[%emt 0:01:29]} 18. Qa7 {[%emt 0:03:36]} Rxb2 {[%emt 0:00:59]} 19. Rfb1 {[%emt 0:00:32]} Rf7 {[%emt 0:03:24]} 20. Qxf7+ {[%emt 0:02:26]} Kxf7 {[%emt 0:01:00]} 21. Rxb2 {[%emt 0:00:06]} g5 {[%emt 0:02:41]} 22. Rab1 {[%emt 0:02:55]} Bd7 {[%emt 0:01:44]} 23. Rb8 {[%emt 0:02:24]} Qe7 {[%emt 0:00:19]} 24. R1b7 {[%emt 0:00:48]} Ke6 {[%emt 0:03:06]} 25. Ra8 {[%emt 0:01:45]} Qc5 {[%emt 0:04:03]} 26. Rd8 {[%emt 0:01:11]} Qc1+ {[%emt 0:06:58]} 27. Bf1 {[%emt 0:00:16]} f4 {[%emt 0:00:20]} 28. exf4 {[%emt 0:00:58]} gxf4 {[%emt 0:00:48]} 29. Rbxd7 {[%emt 0:01:14]} Kxe5 {[%emt 0:01:54]} 30. Rxh7 {[%emt 0:01:36]} fxg3 {[%emt 0:01:11]} 31. hxg3 {[%emt 0:00:07]} a4 {[%emt 0:02:11]} 32. Rh4 {[%emt 0:01:55]} a3 {[%emt 0:00:34]} 33. Ra8 {[%emt 0:00:16]} Qb2 {[%emt 0:01:49]} 34. Rha4 {[%emt 0:00:08]} Qxa2 {[%emt 0:00:21]} 35. Rxa3 {[%emt 0:00:05]} Qb1 {[%emt 0:01:09]} 36. Re3+ {[%emt 0:01:39]} Kd4 {[%emt 0:01:21]} 37. g4 {[%emt 0:00:34]} Qc1 {[%emt 0:04:57]} 38. g5 {[%emt 0:00:56]} Qb1 {[%emt 0:00:22]} 39. Rg3 {[%emt 0:00:31]} Qb7 {[%emt 0:01:26]} 40. Ra4+ {[%emt 0:00:24]} Ke5 {[%emt 0:15:38]} 41. g6 {[%emt 0:15:21]} 1-0

[Event "CZE-ch Open 2018"]
[Site "Ostrava"]
[Date "2018.04.29"]
[Round "2"]
[White "Jedlicka, Ales"]
[Black "Havelka, Ondrej"]
[Result "0-1"]
[ECO "E06"]
[WhiteElo "2238"]
[BlackElo "2041"]
[Annotator "ChessBase"]
[PlyCount "58"]
[EventDate "2018.??.??"]
[EventCountry "CZE"]
[SourceTitle "playchess.com"]
[Source "ChessBase"]
[SourceQuality "1"]
[TimeControl "40/5400+30:900+30"]

1. d4 {[%emt 0:04:33]} d5 {[%emt 0:01:26]} 2. c4 {[%emt 0:00:10]} e6 {[%emt 0:00:06]} 3. Nf3 {[%emt 0:00:10]} Nf6 {[%emt 0:00:06]} 4. g3 {[%emt 0:00:16]} Be7 {[%emt 0:00:04]} 5. Bg2 {[%emt 0:00:14]} O-O {[%emt 0:00:05]} 6. O-O {[%emt 0:00:13]} c6 {[%emt 0:00:04]} 7. Qc2 {[%emt 0:00:21]} b6 {[%emt 0:00:06]} 8. Nbd2 {[%emt 0:00:25]} Bb7 {[%emt 0:00:04]} 9. e4 {[%emt 0:00:24]} Na6 {[%emt 0:00:07]} 10. e5 {[%emt 0:01:13]} Nd7 {[%emt 0:00:05]} 11. Re1 {[%emt 0:01:59]} c5 {[%emt 0:01:03]} 12. cxd5 {[%emt 0:01:17]} Bxd5 {[%emt 0:00:37]} 13. Ne4 {[%emt 0:03:48]} cxd4 {[%emt 0:08:26]} 14. Neg5 {[%emt 0:01:12]} g6 {[%emt 0:03:24]} 15. Nxd4 {[%emt 0:11:42]} Rc8 {[%emt 0:27:39]} 16. Qe2 {[%emt 0:02:07]} Bc4 {[%emt 0:25:01]} 17. Qg4 {[%emt 0:02:59]} h5 {[%emt 0:02:26]} 18. Qf4 {[%emt 0:14:25]} Nb4 {[%emt 0:05:42]} 19. Ngf3 {[%emt 0:15:27]} Nd3 {[%emt 0:03:30]} 20. Qh6 {[%emt 0:00:19]} N7xe5 {[%emt 0:01:46]} 21. Nxe5 {[%emt 0:24:29]} Nxe5 {[%emt 0:03:21]} 22. Rd1 {[%emt 0:05:53]} Be2 {[%emt 0:05:43]} 23. Rd2 {[%emt 0:01:01]} Bg5 {[%emt 0:01:13]} 24. Nxe6 {[%emt 0:01:31]} Bxh6 {[%emt 0:03:00]} 25. Rxd8 {[%emt 0:00:12]} Rfxd8 {[%emt 0:01:06]} 26. Nxd8 {[%emt 0:00:23]} Bxc1 {[%emt 0:01:05]} 27. Nc6 {[%emt 0:01:15]} Bxb2 {[%emt 0:02:01]} 28. Ne7+ {[%emt 0:04:16]} Kf8 {[%emt 0:00:04]} 29. Re1 {[%emt 0:00:12]} Rc1 {[%emt 0:00:05]} 0-1